[Event "Match Czechia vs Poland 2020"]
[Site "Zlin"]
[Date "2020.09.17"]
[Round "4.1"]
[White "Babula, Vlastimil"]
[Black "Piorun, Kacper"]
[Result "1/2-1/2"]
[ECO "E53"]
[WhiteElo "2571"]
[BlackElo "2596"]
[Annotator "ChessBase"]
[PlyCount "53"]
[EventDate "2020.09.14"]
[EventType "schev"]
[EventCountry "CZE"]
[WhiteTeam "Czech Republic"]
[BlackTeam "Poland"]
[WhiteTeamCountry "CZE"]
[BlackTeamCountry "POL"]
[TimeControl "40/5400+30:1800+30"]

1. d4 {[%emt 0:00:00]} Nf6 {[%emt 0:00:00]} 2. c4 {[%emt 0:00:00]} e6 {[%emt 0:00:00]} 3. Nc3 {[%emt 0:00:00]} Bb4 {[%emt 0:00:00]} 4. e3 {[%emt 0:00:06]} O-O {[%emt 0:00:00]} 5. Bd3 {[%emt 0:00:18]} d5 {[%emt 0:00:06]} 6. Nf3 {[%emt 0:00:31]} c5 {[%emt 0:00:08]} 7. cxd5 {[%emt 0:00:32]} exd5 {[%emt 0:00:27]} 8. dxc5 {[%emt 0:00:22]} Nbd7 {[%emt 0:00:11]} 9. Bd2 {[%emt 0:00:29]} Nxc5 {[%emt 0:00:31]} 10. Be2 {[%emt 0:00:12]} Ne6 {[%emt 0:04:35]} 11. a3 {[%emt 0:00:30]} Bd6 {[%emt 0:02:38]} 12. Nb5 {[%emt 0:01:13]} Bb8 {[%emt 0:01:10]} 13. Bc3 {[%emt 0:08:26]} Ne4 {[%emt 0:05:11]} 14. Rc1 {[%emt 0:02:33]} Re8 {[%emt 0:09:55]} 15. O-O {[%emt 0:06:02]} a6 {[%emt 0:07:00]} 16. Nbd4 {[%emt 0:01:21]} N6c5 {[%emt 0:08:49]} 17. Bb4 {[%emt 0:19:29]} Bd6 {[%emt 0:08:25]} 18. Nd2 {[%emt 0:08:30]} b6 {[%emt 0:07:02]} 19. Nxe4 {[%emt 0:13:03]} dxe4 {[%emt 0:00:11]} 20. Nb3 {[%emt 0:00:28]} Nxb3 {[%emt 0:10:43]} 21. Qxb3 {[%emt 0:01:09]} Be6 {[%emt 0:00:57]} 22. Qc3 {[%emt 0:10:22]} Rc8 {[%emt 0:12:27]} 23. Qd4 {[%emt 0:01:06]} Bxb4 {[%emt 0:01:01]} 24. Qxb4 {[%emt 0:01:28]} a5 {[%emt 0:00:07]} 25. Qxe4 {[%emt 0:01:53]} Qd2 {[%emt 0:01:12]} 26. Rxc8 {[%emt 0:01:16]} Rxc8 {[%emt 0:00:02]} 27. Bg4 {[%emt 0:09:37]} 1/2-1/2

[Event "Match Czechia vs Poland 2020"]
[Site "Zlin"]
[Date "2020.09.17"]
[Round "4.3"]
[White "Kriebel, Tadeas"]
[Black "Sadzikowski, Daniel"]
[Result "1/2-1/2"]
[ECO "B11"]
[WhiteElo "2519"]
[BlackElo "2527"]
[Annotator "ChessBase"]
[PlyCount "75"]
[EventDate "2020.09.14"]
[EventType "schev"]
[EventCountry "CZE"]
[WhiteTeam "Czech Republic"]
[BlackTeam "Poland"]
[WhiteTeamCountry "CZE"]
[BlackTeamCountry "POL"]
[TimeControl "40/5400+30:1800+30"]

1. e4 {[%emt 0:00:00]} c6 {[%emt 0:00:00]} 2. Nc3 {[%emt 0:00:00]} d5 {[%emt 0:00:00]} 3. Nf3 {[%emt 0:00:00]} Bg4 {[%emt 0:01:07]} 4. h3 {[%emt 0:00:06]} Bxf3 {[%emt 0:00:05]} 5. Qxf3 {[%emt 0:00:04]} Nf6 {[%emt 0:00:40]} 6. Be2 {[%emt 0:00:26]} e6 {[%emt 0:01:35]} 7. O-O {[%emt 0:00:05]} dxe4 {[%emt 0:14:31]} 8. Nxe4 {[%emt 0:00:15]} Nbd7 {[%emt 0:00:11]} 9. d4 {[%emt 0:01:31]} Nxe4 {[%emt 0:01:16]} 10. Qxe4 {[%emt 0:00:05]} Nf6 {[%emt 0:00:08]} 11. Qe3 {[%emt 0:04:33]} g6 {[%emt 0:04:21]} 12. c4 {[%emt 0:08:38]} Bg7 {[%emt 0:01:31]} 13. Bd2 {[%emt 0:00:55]} O-O {[%emt 0:00:14]} 14. Bc3 {[%emt 0:00:08]} a5 {[%emt 0:01:44]} 15. a4 {[%emt 0:08:36]} Qc7 {[%emt 0:01:41]} 16. Rfd1 {[%emt 0:04:45]} Rfd8 {[%emt 0:01:00]} 17. Bf3 {[%emt 0:15:33]} Ne8 {[%emt 0:00:37]} 18. b3 {[%emt 0:14:02]} Rd7 {[%emt 0:24:21]} 19. d5 {[%emt 0:15:07]} Bxc3 {[%emt 0:15:20]} 20. dxc6 {[%emt 0:00:06]} Rxd1+ {[%emt 0:00:08]} 21. Rxd1 {[%emt 0:00:04]} Qe5 {[%emt 0:00:24]} 22. cxb7 {[%emt 0:00:04]} Rb8 {[%emt 0:00:06]} 23. c5 {[%emt 0:01:04]} Kf8 {[%emt 0:18:11]} 24. c6 {[%emt 0:01:30]} Qxe3 {[%emt 0:02:03]} 25. fxe3 {[%emt 0:00:02]} Nc7 {[%emt 0:00:08]} 26. Rd7 {[%emt 0:05:43]} Be5 {[%emt 0:00:07]} 27. Be2 {[%emt 0:03:47]} Ne8 {[%emt 0:03:45]} 28. b4 {[%emt 0:08:59]} Bc7 {[%emt 0:00:02]} 29. bxa5 {[%emt 0:02:34]} Bxa5 {[%emt 0:00:04]} 30. Kf2 {[%emt 0:00:32]} Kg7 {[%emt 0:00:39]} 31. Kf3 {[%emt 0:01:47]} h5 {[%emt 0:01:02]} 32. Bc4 {[%emt 0:02:03]} Kf6 {[%emt 0:00:09]} 33. Ke4 {[%emt 0:00:48]} Nc7 {[%emt 0:01:32]} 34. Kd4 {[%emt 0:01:02]} Bb6+ {[%emt 0:00:06]} 35. Kc3 {[%emt 0:00:28]} Ba5+ {[%emt 0:00:02]} 36. Kd4 {[%emt 0:00:05]} Bb6+ {[%emt 0:00:06]} 37. Kc3 {[%emt 0:00:04]} Ba5+ {[%emt 0:00:01]} 38. Kd4 {[%emt 0:02:47]} 1/2-1/2

[Event "Match Czechia vs Poland 2020"]
[Site "Zlin"]
[Date "2020.09.17"]
[Round "4.4"]
[White "Janik, Igor"]
[Black "Nguyen, Thai Dai Van"]
[Result "1-0"]
[ECO "A13"]
[WhiteElo "2470"]
[BlackElo "2569"]
[Annotator "RC"]
[PlyCount "83"]
[EventDate "2020.09.14"]
[EventType "schev"]
[EventCountry "CZE"]
[WhiteTeam "Poland"]
[BlackTeam "Czech Republic"]
[WhiteTeamCountry "POL"]
[BlackTeamCountry "CZE"]
[TimeControl "40/5400+30:1800+30"]

1. c4 {[%emt 0:17:05]} e6 {[%emt 0:00:41]} 2. Nf3 {[%emt 0:00:00]} d5 {[%emt 0:00:00]} 3. g3 {[%emt 0:00:00]} Nf6 {[%emt 0:01:56]} 4. Bg2 {[%emt 0:00:00]} d4 {[%emt 0:00:05]} 5. O-O {[%emt 0:00:00]} Nc6 {[%emt 0:00:05]} 6. d3 {[%emt 0:00:00]} Bc5 {[%emt 0:00:36]} 7. Na3 {[%emt 0:00:00]} O-O {[%emt 0:00:35]} 8. Nc2 {[%emt 0:00:00]} e5 {[%emt 0:01:41]} 9. b4 {[%emt 0:00:00]} Nxb4 {[%emt 0:02:02]} 10. Nxb4 {[%emt 0:00:00]} Bxb4 {[%emt 0:00:05]} 11. Nxe5 {[%emt 0:00:00]} Re8 {[%emt 0:02:28]} 12. Nf3 {[%emt 0:04:12]} Bc5 {[%emt 0:05:09]} 13. Rb1 {[%emt 0:03:30]} Rb8 {[%emt 0:03:08]} 14. Re1 {[%emt 0:11:07]} b6 {[%emt 0:06:48]} 15. Nd2 {[%emt 0:01:03]} Bg4 {[%emt 0:03:25]} 16. h3 {[%emt 0:01:50]} Be6 {[%emt 0:16:02]} 17. Nb3 {[%emt 0:04:52]} Bf8 {[%emt 0:03:10]} 18. Bf4 {[%emt 0:07:02]} Nh5 {[%emt 0:11:47]} 19. Be5 {[%emt 0:08:50]} Bxh3 {[%emt 0:00:14]} 20. Bxd4 {[%emt 0:00:21]} Bg4 {[%emt 0:05:56]} 21. Qd2 {[%emt 0:03:17]} a5 {[%emt 0:00:56]} 22. Bc3 {[%emt 0:00:11]} c5 {[%emt 0:00:14]} 23. e4 {[%emt 0:03:41]} g6 {[%emt 0:07:54]} 24. Na1 {[%emt 0:01:21]} Rb7 {[%emt 0:05:09]} 25. Nc2 {[%emt 0:03:10]} Rd7 {[%emt 0:01:00]} 26. Ne3 {[%emt 0:00:12]} Rxd3 {[%emt 0:11:42]} 27. Qc2 {[%emt 0:00:03]} Be6 {[%emt 0:00:09]} 28. Nd5 {[%emt 0:00:18]} Rd4 {[%emt 0:00:16]} 29. Bxd4 {[%emt 0:02:20]} cxd4 {[%emt 0:00:05]} 30. Bf3 {[%emt 0:01:49]} Nf6 {[%emt 0:00:40]} 31. Qd2 {[%emt 0:01:27]} Bc5 {[%emt 0:02:08]} 32. Kg2 {[%emt 0:00:32]} Nd7 {[%emt 0:00:53]} 33. Rh1 {[%emt 0:05:21]} h5 {[%emt 0:00:10]} 34. Bxh5 {[%emt 0:02:49]} gxh5 {[%emt 0:02:34]} 35. Rxh5 {[%emt 0:00:07]} Bf8 {[%emt 0:00:45]} 36. Rbh1 {[%emt 0:01:24]} Bg7 {[%emt 0:00:01]} 37. Rh7 {[%emt 0:00:49]} f6 {[%emt 0:03:33]} 38. Rxg7+ {[%emt 0:00:32]} Kxg7 {[%emt 0:00:04]} 39. Qh6+ {[%emt 0:00:07]} Kf7 {[%emt 0:00:02]} 40. Qh7+ {[%emt 0:00:22]} Kf8 {[%emt 0:00:01]} 41. Qh8+ {[%emt 0:30:41]} Bg8 {[%emt 0:30:04]} 42. Rh7 {[%emt 0:00:12]} 1-0

[Event "Match Czechia vs Poland 2020"]
[Site "Zlin"]
[Date "2020.09.17"]
[Round "4.5"]
[White "Teclaf, Pawel"]
[Black "Krejci, Jan"]
[Result "1/2-1/2"]
[ECO "C88"]
[WhiteElo "2464"]
[BlackElo "2543"]
[Annotator "ChessBase"]
[PlyCount "50"]
[EventDate "2020.09.14"]
[EventType "schev"]
[EventCountry "CZE"]
[WhiteTeam "Poland"]
[BlackTeam "Czech Republic"]
[WhiteTeamCountry "POL"]
[BlackTeamCountry "CZE"]
[TimeControl "40/5400+30:1800+30"]

1. e4 {[%emt 0:00:00]} e5 {[%emt 0:00:00]} 2. Nf3 {[%emt 0:00:00]} Nc6 {[%emt 0:00:00]} 3. Bb5 {[%emt 0:00:00]} a6 {[%emt 0:00:00]} 4. Ba4 {[%emt 0:00:00]} Nf6 {[%emt 0:00:00]} 5. O-O {[%emt 0:00:00]} Be7 {[%emt 0:00:00]} 6. Re1 {[%emt 0:00:00]} b5 {[%emt 0:00:02]} 7. Bb3 {[%emt 0:00:00]} d6 {[%emt 0:00:06]} 8. a4 {[%emt 0:00:00]} b4 {[%emt 0:08:24]} 9. a5 {[%emt 0:02:55]} O-O {[%emt 0:06:02]} 10. d3 {[%emt 0:00:10]} Be6 {[%emt 0:00:09]} 11. Nbd2 {[%emt 0:00:28]} Rb8 {[%emt 0:00:22]} 12. Bc4 {[%emt 0:09:21]} Qc8 {[%emt 0:00:06]} 13. Nf1 {[%emt 0:01:43]} h6 {[%emt 0:08:05]} 14. Ne3 {[%emt 0:07:03]} Re8 {[%emt 0:12:35]} 15. Nd5 {[%emt 0:16:29]} Bd8 {[%emt 0:00:28]} 16. c3 {[%emt 0:01:23]} bxc3 {[%emt 0:03:29]} 17. bxc3 {[%emt 0:00:32]} Bxd5 {[%emt 0:00:26]} 18. Bxd5 {[%emt 0:04:30]} Nxd5 {[%emt 0:00:58]} 19. exd5 {[%emt 0:00:05]} Ne7 {[%emt 0:00:07]} 20. c4 {[%emt 0:08:52]} Ng6 {[%emt 0:04:19]} 21. Nd4 {[%emt 0:08:15]} Bg5 {[%emt 0:11:56]} 22. Nc6 {[%emt 0:01:31]} Rb7 {[%emt 0:00:06]} 23. g3 {[%emt 0:04:22]} Qf5 {[%emt 0:07:41]} 24. Qe2 {[%emt 0:04:48]} Bxc1 {[%emt 0:08:19]} 25. Raxc1 {[%emt 0:00:17]} Ne7 {[%emt 0:00:18]} 1/2-1/2